fUSD/lending_fUSD_20240415
["ID","MTS","AMOUNT","RATE_DAILY","PERIOD"]
[322647927,1713169461678,-155.0,0.000189,2]
[322647928,1713169461699,-1039.63439933,0.000189,2]
[322647929,1713169461720,-3131689.02968784,0.0001899,2]
[322647930,1713169461741,-723.87697238,0.00019078,2]
[322647931,1713169461763,-214.51714927,0.00019078,2]
[322647932,1713169461783,-391.34019776,0.00019178,2]
[322647933,1713169461802,-508.1530735,0.00019178,2]
[322647934,1713169461823,-723.87697238,0.0001928,2]
[322647935,1713169461846,-723.87697238,0.00019483,2]
[322647936,1713169461867,-640.0,0.00019667,2]
[322647937,1713169461888,-723.87697238,0.00019685,2]
[322647938,1713169461908,-1050.38,0.00019861,2]
[322647939,1713169461930,-723.87697238,0.00019888,2]
[322647940,1713169461960,-952.68711223,0.0001995,2]
[322647941,1713169461983,-10000.0,0.0001995,2]
[322647942,1713169462003,-360.0,0.00019976,2]
[322647943,1713169462025,-723.87697238,0.0002009,2]
[322647944,1713169462047,-2751.0,0.0002028,2]
[322647945,1713169462067,-723.87697238,0.00020293,2]
[322647946,1713169462089,-200.0,0.00020363,2]
[322647947,1713169462111,-723.87697238,0.00020495,2]
[322647948,1713169462132,-1000.0,0.0002053,2]
[322647949,1713169462153,-155.19115796,0.00020578,2]
[322647950,1713169462173,-150.0,0.0002065,2]
[322647951,1713169462193,-723.87697238,0.00020698,2]
[322647952,1713169462216,-459.95,0.00020709,2]
[322647953,1713169462240,-3287.4804673,0.000209,2]
[322647954,1713169462261,-7500.0,0.000209,2]
[322647955,1713169462282,-2115.43346504,0.000209,2]
[322647956,1713169462302,-337.49,0.000209,2]
[322647957,1713169462324,-2167.53968146,0.000209,2]
[322647958,1713169462347,-214.51714927,0.000209,2]
[322647959,1713169462369,-723.87697238,0.000209,2]
[322647960,1713169462389,-4576.55450407,0.00020979,2]
[322647961,1713169462410,-549.68,0.00020979,2]
[322647962,1713169462430,-427.95993644,0.00020988,2]
[322647963,1713169462451,-180.80177667,0.0002099,2]
[322647964,1713169462471,-4721.76014584,0.00020998,2]
[322647965,1713169462491,-157.76642954,0.00020998,3]
[322647966,1713169462511,-4316.45011199,0.00020998,2]
[322647967,1713169462534,-155.32197179,0.00020998,2]
[322647968,1713169462554,-155.8021203,0.00020998,2]
[322647969,1713169462576,-625.54864865,0.00020998,2]
[322647970,1713169462598,-273.70104697,0.00020998,2]
[322647971,1713169462622,-277.89969253,0.00020998,2]
[322647972,1713169462642,-1374.23535639,0.00020998,2]
[322647973,1713169462663,-3753.78062122,0.00020998,2]
[322647974,1713169462683,-305.91255517,0.00020998,2]
[322647975,1713169462706,-234.96336901,0.00020998,2]
[322647976,1713169462727,-411.04416781,0.00020998,2]
[322647977,1713169462747,-343.84071601,0.00020998,2]
[322647978,1713169462768,-3076.4815945,0.00020998,2]
[322647979,1713169462789,-1866.30633727,0.00020998,2]
[322647980,1713169462810,-305.27766941,0.00020998,2]
[322647981,1713169462832,-2327.95606806,0.00020998,2]
[322647982,1713169462853,-486.39302872,0.00020998,2]
[322647983,1713169462876,-5645.01413812,0.00020998,2]
[322647984,1713169462898,-155.0,0.00020998,2]
[322647985,1713169462919,-1779.60958078,0.00020998,2]
[322647986,1713169462940,-180.83104748,0.00020998,2]
[322647987,1713169462960,-264.64529609,0.00020998,2]
[322647988,1713169462980,-689.48377183,0.00020998,2]
[322647989,1713169463002,-1124.36492727,0.00020998,2]
[322647990,1713169463030,-266.64061308,0.00020998,2]
[322647991,1713169463054,-3392.31663628,0.00020998,2]
[322647992,1713169463076,-532.18453577,0.00020998,2]
[322647993,1713169463101,-4320.39606522,0.00020999,2]
[322647994,1713169463124,-8892.32609015,0.00020999,2]
[322647995,1713169463147,-151.041516,0.00020999,2]
[322647996,1713169463170,-151.041516,0.00020999,2]
[322647997,1713169463192,-173.041516,0.00020999,2]
[322647998,1713169463214,-173.041516,0.00020999,2]
[322647999,1713169463237,-173.041516,0.00020999,2]
[322648000,1713169463258,-173.041516,0.00020999,2]
[322648001,1713169463280,-171.041516,0.00020999,2]
[322648002,1713169463300,-374.91342752,0.00020999,2]
[322648003,1713169463323,-19520.03723283,0.00021,2]
[322648004,1713169513961,210.93,0.00016712,2]
[322648005,1713169548164,1039.63439933,0.00016712,2]
[322648006,1713169550268,408.10113394,0.00016712,2]
[322648007,1713169550592,365.42517635,0.00016712,2]
[322648008,1713169553719,7492.75555541,0.00016712,2]
[322648009,1713169553993,323.59908073,0.00016712,2]
[322648010,1713169561973,231.38232982,0.00016712,2]
[322648011,1713169562163,1039.63439933,0.00016712,2]
[322648012,1713169564739,365.30620045,0.00016712,2]
[322648013,1713169568992,7492.75555541,0.00016712,2]
[322648014,1713169577413,324.60502878,0.00016712,2]
[322648015,1713169580399,317.94461267,0.00016712,2]
[322648016,1713169583010,5087.10672821,0.00016712,2]
[322648083,1713169812392,2000.0,0.00028,14]
[322648097,1713169832207,20150.75131029,0.00016712,2]
[322648132,1713169832946,-1550.0,0.00019,3]
[322648133,1713169832957,-5088.05,0.0001995,2]
[322648134,1713169832985,-1329.0277,0.0001995,2]
[322648135,1713169833055,-2202.24070848,0.0001995,2]
[322648136,1713169833064,-699.92,0.00020254,2]
[322648137,1713169833073,-1000.0,0.00020254,2]
[322648138,1713169833082,-817.76896,0.0002079,2]
[322648139,1713169833092,-16747.7675493,0.000209,2]
[322648140,1713169833101,-7500.0,0.000209,2]
[322648141,1713169833110,-1184.0,0.000209,2]
[322648142,1713169833118,-6671.6412,0.000209,2]
[322648143,1713169833127,-150.34000937,0.00020979,2]
[322648144,1713169833136,-2371.00013254,0.00020997,2]
[322648145,1713169833145,-1387.71901928,0.00020999,2]
[322648146,1713169833154,-102202.81556033,0.00021,2]
[322648147,1713169833167,-14956.38412956,0.00021,2]
[322648148,1713169833774,-359.05286967,0.00021,2]
[322648149,1713169833857,-5685.37778693,0.00021,2]
[322648150,1713169833918,-270516.40080796,0.00021,2]
[322648151,1713169833930,-67345.1210374,0.00021,2]
[322648202,1713169840241,-1641.02539894,0.00021,2]
[322648205,1713169840289,-7102064.2901042,0.00021,2]
[322648215,1713169840733,-10140.99590543,0.00021,2]
[322648218,1713169841647,-3649.60762496,0.00021,2]
[322648219,1713169841712,-344.99710747,0.00021,2]
[322648220,1713169842534,-147027.78173548,0.00021,2]
[322648221,1713169842546,-75383.4039362,0.00021,2]
[322648222,1713169842558,-5196.0,0.00021,2]
[322648223,1713169842569,-6807.5000025,0.00021,2]
[322648224,1713169842584,-1248.49767,0.00021,2]
[322648268,1713169845565,-931.13278959,0.00021,2]
[322648269,1713169845628,-3692.97388579,0.00021,2]
[322648270,1713169845755,-1645.7999992,0.00021,2]
[322648271,1713169845767,-77221.76642954,0.00021,2]
[322648287,1713169848703,-6533.79999999,0.00021,2]
[322648288,1713169848767,-240019.80727624,0.00021,2]
[322648289,1713169848816,-1571.12500065,0.00021,2]
[322648290,1713169850215,7916.09759136,0.00016712,2]
[322648293,1713169908455,1544.13678148,0.00025392,28]
[322648294,1713169997881,500.0,0.00016578,2]
[322648295,1713170001233,200.0,0.00016578,2]
[322648298,1713170040893,1323.65113541,0.00018,2]
[322648300,1713170384363,431.9,0.00017921,2]
[322648301,1713170504286,4511.0,0.00028,30]
[322648303,1713170588569,2007.00005574,0.00028,14]
[322648317,1713170891348,38.1,0.00017734,2]
[322648318,1713170891372,390.92,0.00017734,2]
[322648355,1713171031554,-313.09240719,0.00019063,2]
[322648356,1713171031564,-169.55226304,0.00019064,2]
[322648357,1713171031575,-1499.33357344,0.0001916,2]
[322648358,1713171031607,-756.03810701,0.0001916,2]
[322648359,1713171031618,-5179.960867,0.0001916,2]
[322648360,1713171031630,-895.15851272,0.0001916,2]
[322648361,1713171031691,-538.95284973,0.0001916,2]
[322648362,1713171031744,-1054.71998718,0.0001916,2]
[322648363,1713171031756,-1061.63901336,0.0001916,2]
[322648364,1713171031770,-371.1037927,0.0001916,2]
[322648365,1713171031877,-2261.18137184,0.0001916,2]
[322648366,1713171031888,-653.96532001,0.0001916,2]
[322648367,1713171031900,-9804.00000001,0.0001916,2]
[322648368,1713171031912,-11140.88856286,0.0001916,2]
[322648370,1713171031922,-523.40353013,0.00019161,2]
[322648371,1713171031931,-526.2102462,0.00019161,2]
[322648372,1713171031942,-8895.60631169,0.00019161,2]
[322648373,1713171031951,-264.01498696,0.00019162,2]
[322648374,1713171031960,-1774.81593737,0.00019162,2]
[322648375,1713171031971,-304.98221471,0.00019163,2]
[322648376,1713171031980,-3772.4841615,0.00019163,2]
[322648377,1713171031990,-607.769985,0.00019164,2]
[322648378,1713171032000,-532.55824777,0.00019164,2]
[322648379,1713171032010,-150.0,0.00019172,2]
[322648380,1713171032020,-150.0,0.00019172,2]
[322648381,1713171032032,-510.0,0.00019178,2]
[322648382,1713171032041,-3868.29298528,0.000192,2]
[322648383,1713171032053,-200.0,0.00019631,2]
[322648384,1713171032065,-150.0,0.00019729,2]
[322648385,1713171032075,-403.56,0.00019778,2]
[322648386,1713171032085,-1000.0,0.00019779,2]
[322648387,1713171032094,-539.43,0.00019782,2]
[322648388,1713171032105,-348.82,0.00019782,2]
[322648389,1713171032115,-250.0,0.00019792,2]
[322648390,1713171032125,-8422.43,0.00019795,2]
[322648391,1713171032136,-512.0,0.00019839,2]
[322648392,1713171032146,-465.94,0.00019839,2]
[322648393,1713171032156,-429.02,0.00019998,2]
[322648394,1713171032165,-1386.63,0.00020031,2]
[322648395,1713171032175,-510.0,0.00020274,2]
[322648396,1713171032185,-720.7,0.00020274,2]
[322648397,1713171032196,-150.99,0.00020431,2]
[322648398,1713171032205,-488.0,0.00020448,2]
[322648399,1713171032217,-157.28648231,0.00020577,2]
[322648400,1713171032227,-168.27,0.00020693,2]
[322648401,1713171032237,-168.27,0.00020711,2]
[322648402,1713171032246,-168.27,0.00020728,2]
[322648403,1713171032255,-168.27,0.00020745,2]
[322648404,1713171032265,-168.27,0.00020762,2]
[322648405,1713171032275,-168.27,0.00020779,2]
[322648406,1713171032284,-251.08783605,0.00020787,2]
[322648407,1713171032294,-168.27,0.00020797,2]
[322648408,1713171032303,-315.89154164,0.00020797,2]
[322648409,1713171032312,-19451.8365636,0.000208,2]
[322648432,1713171037584,-233.63758702,0.00019063,2]
[322648433,1713171037595,-607.769985,0.00019063,2]
[322648434,1713171037608,-64800.7838364,0.000208,2]
[322648435,1713171037619,-315.8915416,0.00020808,2]
[322648436,1713171037628,-315.8915416,0.0002082,2]
[322648437,1713171037640,-315.8915416,0.00020831,2]
[322648438,1713171037652,-5469.85373204,0.00020897,2]
[322648439,1713171037662,-325.46565852,0.00020897,2]
[322648440,1713171037673,-5469.85373199,0.00020897,2]
[322648441,1713171037683,-5469.85373199,0.00020898,2]
[322648442,1713171037693,-5469.85373199,0.00020898,2]
[322648443,1713171037703,-151.90633486,0.00020898,2]
[322648444,1713171037713,-5469.85373199,0.00020898,2]
[322648445,1713171037724,-908.26345314,0.00020899,2]
[322648446,1713171037801,-851.61394799,0.00020899,2]
[322648447,1713171037853,-384.59479513,0.00020899,2]
[322648448,1713171038176,-843.53623725,0.00020899,2]
[322648449,1713171038189,-2481.84529848,0.00020899,2]
[322648450,1713171038200,-151.90633486,0.00020899,2]
[322648451,1713171038210,-5469.85373199,0.00020899,2]
[322648452,1713171038220,-5469.85373199,0.00020899,2]
[322648453,1713171038230,-151.90633486,0.00020899,2]
[322648454,1713171038240,-5469.85373199,0.000209,2]
[322648455,1713171038250,-2088.5152,0.000209,2]
[322648456,1713171038260,-4148.24257714,0.000209,2]
[322648457,1713171038270,-176.5655471,0.000209,2]
[322648458,1713171038279,-11632.38424318,0.000209,2]
[322648459,1713171038292,-468.50164004,0.000209,2]
[322648472,1713171038489,-67804.72094078,0.000209,2]
[322648474,1713171038499,-151.90633486,0.000209,2]
[322648476,1713171038509,-1938.5352,0.000209,2]
[322648478,1713171038519,-151.44981618,0.000209,2]
[322648480,1713171038530,-5469.85373199,0.000209,2]
[322648482,1713171038539,-3005.30720879,0.00020978,2]
[322648484,1713171038549,-197.19951908,0.00020987,2]
[322648486,1713171038559,-2224.18211761,0.0002099,2]
[322648488,1713171038568,-4320.39606522,0.00020995,2]
[322648490,1713171038578,-197.82818765,0.00020995,2]
[322648492,1713171038588,-432.35112139,0.00020995,2]
[322648494,1713171038597,-155.0,0.00020995,2]
[322648496,1713171038608,-780.20204216,0.00020995,2]
[322648498,1713171038617,-155.0,0.00020995,2]
[322648500,1713171038627,-741.78691365,0.00020995,2]
[322648502,1713171038637,-157.77059454,0.00020995,2]
[322648504,1713171038646,-270.45915798,0.00020995,2]
[322648506,1713171038656,-566.12866481,0.00020996,2]
[322648508,1713171038667,-407571.21980577,0.00020997,2]
[322648510,1713171038677,-185.89887667,0.00020997,2]
[322648512,1713171038686,-192.46391051,0.00020997,2]
[322648513,1713171038696,-155.65045748,0.00020997,2]
[322648514,1713171038706,-2173.81938731,0.00020997,2]
[322648515,1713171038717,-367.90754866,0.00020997,2]
[322648516,1713171038727,-4154.25704137,0.00020997,2]
[322648517,1713171038737,-216.64031208,0.00020997,2]
[322648518,1713171038747,-732.90773638,0.00020997,2]
[322648519,1713171038756,-201.88060607,0.00020997,2]
[322648520,1713171038767,-2626.12412185,0.00020997,2]
[322648521,1713171038777,-2227.09275801,0.00020997,2]
[322648522,1713171038786,-282.90746947,0.00020997,2]
[322648523,1713171038796,-157.041517,0.00020997,2]
[322648524,1713171038806,-157.041517,0.00020997,2]
[322648525,1713171038817,-157.041517,0.00020997,2]
[322648526,1713171038826,-157.041517,0.00020997,2]
[322648527,1713171038836,-157.041517,0.00020997,2]
[322648528,1713171038846,-157.041517,0.00020997,2]
[322648529,1713171038857,-157.041517,0.00020997,2]
[322648530,1713171038867,-157.041517,0.00020997,2]
[322648531,1713171038877,-157.041517,0.00020997,2]
[322648532,1713171038887,-173.041517,0.00020997,2]
[322648533,1713171038897,-157.041517,0.00020997,2]
[322648534,1713171038907,-155.0,0.00020998,2]
[322648535,1713171038917,-682.38593014,0.00020998,2]
[322648536,1713171038927,-157.041517,0.00020998,2]
[322648537,1713171038937,-157.041517,0.00020998,2]
[322648538,1713171038946,-157.041517,0.00020998,2]
[322648539,1713171038956,-157.041517,0.00020998,2]
[322648540,1713171038965,-157.041517,0.00020998,2]
[322648541,1713171038975,-157.041517,0.00020998,2]
[322648542,1713171038985,-167.041517,0.00020998,2]
[322648543,1713171038995,-167.041517,0.00020998,2]
[322648544,1713171039006,-642.43298412,0.00020999,2]
[322648545,1713171039015,-1866.30633727,0.00020999,2]
[322648546,1713171039026,-5355.69739423,0.00020999,2]
[322648547,1713171039035,-159.28453069,0.00020999,2]
[322648548,1713171039045,-1300.52491392,0.00020999,2]
[322648549,1713171039057,-620.54602664,0.00020999,2]
[322648550,1713171039068,-261.60041953,0.00020999,2]
[322648551,1713171039078,-150.01,0.00020999,2]
[322648552,1713171039091,-157.041517,0.00020999,2]
[322648553,1713171039103,-157.041517,0.00020999,2]
[322648554,1713171039113,-157.041517,0.00020999,2]
[322648555,1713171039124,-167.041517,0.00020999,2]
[322648556,1713171039136,-167.041517,0.00020999,2]
[322648557,1713171039146,-167.041517,0.00020999,2]
[322648558,1713171039156,-521.73236634,0.00020999,2]
[322648559,1713171039166,-374.91342752,0.00020999,2]
[322648560,1713171039176,-4298624.49700714,0.00021,2]
[322648561,1713171039187,-1430.52250641,0.00021,2]
[322648562,1713171039198,-165795.09307764,0.00021,2]
[322648563,1713171039208,-453.05,0.00021,2]
[322648564,1713171039218,-490.6,0.00021,2]
[322648565,1713171039228,-156200.88215373,0.00021,2]
[322648566,1713171039237,-15000.02628907,0.00021,2]
[322648567,1713171039247,-2854701.13530163,0.00021,2]
[322648575,1713171041229,-3594.50913411,0.00021,2]
[322648576,1713171041293,-370.96436731,0.00021,2]
[322648577,1713171041916,-286.6271417,0.00021,2]
[322648578,1713171041928,-819.84257877,0.00021,2]
[322648579,1713171041939,-1469.35784995,0.00021,2]
[322648580,1713171041950,-894.9258538,0.00021,2]
[322648581,1713171041963,-35250.00000001,0.00021,2]
[322648582,1713171041974,-1430.52981865,0.00021,2]
[322648583,1713171041985,-1031.8386902,0.00021,2]
[322648584,1713171041997,-27788.63150368,0.00021,2]
[322648590,1713171044706,-315.8915416,0.00020843,2]
[322648591,1713171044717,-2175.77387837,0.00021,2]
[322648592,1713171044731,-754.54958735,0.00021,2]
[322648593,1713171044745,-6527.59999999,0.00021,2]
[322648596,1713171047476,-315.8915416,0.00020854,2]
[322648597,1713171047487,-527.9015089,0.00020999,2]
[322648598,1713171047498,-1791.43764361,0.00020999,2]
[322648599,1713171047507,-175428.80163987,0.00021,2]
[322648600,1713171047540,-855.5636589,0.00021,2]
[322648601,1713171047787,-212468.3629151,0.00021,2]
[322648606,1713171385589,386.11,0.00017824,2]
[322648607,1713171544947,473.17938632,0.00017824,2]
[322648608,1713171563615,2786.02,0.00024329,15]
[322648609,1713171563948,2786.02,0.00027068,15]
[322648610,1713171767321,178.68,0.00015662,2]
[322648611,1713171837125,-575.80545533,0.00035378,120]
[322648612,1713171837159,-643.0,0.00035378,120]
[322648613,1713171837190,-275.06343498,0.00035378,60]
[322648614,1713171837318,-163.49899824,0.00035378,120]
[322648615,1713171837366,-222.11790358,0.00035378,120]
[322648616,1713171837406,-151.6860177,0.00035378,120]
[322648617,1713171837471,-170.05823206,0.00035378,120]
[322648618,1713171837506,-482.43851928,0.00035378,120]
[322648619,1713171837549,-409.04351473,0.00035378,120]
[322648620,1713171837586,-196.36560206,0.00035378,120]
[322648621,1713171837973,-159.3880446,0.00035378,120]
[322648622,1713171838005,-333.97822507,0.00035378,120]
[322648623,1713171838034,-261.97702541,0.00035378,120]
[322648624,1713171838064,-222.53185816,0.00035378,120]
[322648625,1713171850713,417.77,0.00017673,2]
[322648626,1713171911874,942.15029461,0.00017673,2]
[322648627,1713171936653,693.66730939,0.00017673,2]
[322648642,1713172051416,1863.955,0.00035358,31]
[322648643,1713172073182,2437.76,0.00024329,15]
[322648644,1713172073723,2437.76,0.00027068,15]
[322648680,1713172224609,163.732305,0.00027945,14]
[322648697,1713172231733,-264.01498696,0.00018493,2]
[322648699,1713172231743,-523.40353013,0.00018494,2]
[322648700,1713172231752,-2177.19801245,0.00018495,2]
[322648701,1713172231762,-741.78691365,0.00018497,2]
[322648702,1713172231771,-150.0,0.00018498,2]
[322648703,1713172231781,-1000.0,0.000185,2]
[322648704,1713172231789,-160.5873794,0.0001878,2]
[322648705,1713172231799,-438.54250543,0.00019,3]
[322648706,1713172231860,-1111.45749457,0.00019,3]
[322648707,1713172231873,-1000.0,0.00019487,2]
[322648708,1713172231886,-1000.0,0.000195,2]
[322648709,1713172231899,-500.0,0.00019528,2]
[322648710,1713172231912,-1000.0,0.00019558,2]
[322648711,1713172231926,-281.62,0.0001959,2]
[322648712,1713172231938,-372.72,0.00019591,2]
[322648713,1713172231950,-500.0,0.00019594,2]
[322648714,1713172231963,-158.4,0.00019648,2]
[322648715,1713172231975,-1946.8,0.00019699,2]
[322648716,1713172231988,-746.53,0.00019731,2]
[322648717,1713172232000,-499.99,0.00019851,2]
[322648718,1713172232014,-999.51691893,0.00019852,2]
[322648719,1713172232028,-156.09,0.00019903,2]
[322648720,1713172232038,-1000.0,0.00019917,2]
[322648721,1713172232050,-705.43574973,0.00019919,2]
[322648722,1713172232064,-156.09,0.00019928,2]
[322648723,1713172232077,-417.77,0.00019936,2]
[322648724,1713172232090,-156.09,0.00019952,2]
[322648725,1713172232101,-156.09,0.00019977,2]
[322648726,1713172232114,-1224.41660811,0.0002,2]
[322648727,1713172232125,-1083.60301757,0.0002,2]
[322648729,1713172232139,-156.09,0.00020002,2]
[322648732,1713172232153,-2932.69709029,0.00020382,2]
[322648734,1713172232165,-1000.0,0.000205,2]
[322648737,1713172232181,-150.0,0.000206,2]
[322648739,1713172232194,-5717.0,0.00020667,2]
[322648741,1713172232209,-20080.94607605,0.00020667,2]
[322648743,1713172232337,-13263.30512,0.00020667,2]
[322648744,1713172232378,-911.68,0.00020667,2]
[322648745,1713172232402,-894.25649274,0.00020667,2]
[322648746,1713172232416,-2460.81231121,0.00020667,2]
[322648747,1713172232428,-150.0,0.00020684,2]
[322648748,1713172232440,-581.0,0.000207,2]
[322648749,1713172232456,-2932.69709029,0.00020772,2]
[322648750,1713172232469,-5448.2749,0.00020799,2]
[322648751,1713172232482,-2756.7853,0.00020799,2]
[322648752,1713172232494,-673.22376906,0.00020799,2]
[322648753,1713172232508,-160.5873794,0.00020799,2]
[322648754,1713172232521,-150.0,0.000208,2]
[322648755,1713172232534,-155.80842566,0.000208,2]
[322648756,1713172232546,-151.44981618,0.000208,2]
[322648757,1713172232559,-223.29426296,0.000208,2]
[322648758,1713172232570,-155.80842558,0.0002081,2]
[322648759,1713172232585,-673.22376904,0.0002081,2]
[322648760,1713172232597,-151.44981618,0.00020811,2]
[322648761,1713172232609,-155.80842558,0.0002082,2]
[322648762,1713172232622,-673.22376904,0.00020821,2]
[322648763,1713172232634,-151.44981618,0.00020822,2]
[322648764,1713172232645,-155.80842558,0.0002083,2]
[322648765,1713172232657,-673.22376904,0.00020833,2]
[322648766,1713172232668,-151.44981618,0.00020833,2]
[322648767,1713172232681,-155.80842558,0.0002084,2]
[322648768,1713172232692,-673.22376904,0.00020844,2]
[322648769,1713172232704,-151.44981618,0.00020844,2]
[322648770,1713172232715,-155.80842558,0.0002085,2]
[322648771,1713172232727,-673.22376904,0.00020855,2]
[322648772,1713172232738,-151.44981618,0.00020856,2]
[322648773,1713172232750,-155.80842558,0.0002086,2]
[322648774,1713172232762,-673.22376904,0.00020866,2]
[322648775,1713172232773,-151.44981618,0.00020867,2]
[322648776,1713172232785,-155.80842558,0.0002087,2]
[322648777,1713172232796,-673.22376904,0.00020878,2]
[322648778,1713172232808,-151.44981618,0.00020878,2]
[322648779,1713172232819,-155.80842558,0.0002088,2]
[322648780,1713172232833,-673.22376904,0.00020889,2]
[322648781,1713172232845,-151.44981618,0.00020889,2]
[322648782,1713172232858,-155.80842558,0.0002089,2]
[322648783,1713172232871,-275.01070826,0.0002089,2]
[322648784,1713172232884,-1059.13916344,0.00020897,2]
[322648785,1713172232896,-786.03244682,0.00020897,2]
[322648786,1713172232908,-1588.59486958,0.00020897,2]
[322648787,1713172232919,-158.14226926,0.00020897,2]
[322648788,1713172232932,-432.35112139,0.00020897,2]
[322648789,1713172232943,-325.82410355,0.00020897,2]
[322648790,1713172232955,-155.0,0.00020897,2]
[322648791,1713172232968,-522.59655575,0.00020897,2]
[322648792,1713172232980,-1866.30633727,0.00020898,2]
[322648793,1713172232994,-5355.69739423,0.00020898,2]
[322648794,1713172233006,-642.43298412,0.00020898,2]
[322648795,1713172233018,-682.38593014,0.00020898,2]
[322648796,1713172233030,-155.0,0.00020898,2]
[322648797,1713172233042,-185.89887667,0.00020898,2]
[322648798,1713172233055,-732.90773638,0.00020898,2]
[322648799,1713172233066,-192.46391051,0.00020898,2]
[322648800,1713172233079,-201.88060607,0.00020898,2]
[322648801,1713172233091,-4154.25704137,0.00020898,2]
[322648802,1713172233104,-2626.12412185,0.00020898,2]
[322648803,1713172233117,-1737.67662085,0.00020898,2]
[322648804,1713172233133,-489.41613716,0.00020898,2]
[322648805,1713172233145,-282.90746947,0.00020898,2]
[322648806,1713172233158,-155.65045748,0.00020898,2]
[322648807,1713172233171,-367.90754866,0.00020898,2]
[322648808,1713172233184,-216.64031208,0.00020898,2]
[322648809,1713172233196,-155.0,0.00020898,2]
[322648810,1713172233207,-780.20204216,0.00020898,2]
[322648811,1713172233220,-566.12866481,0.00020898,2]
[322648812,1713172233231,-4320.39606522,0.00020898,2]
[322648813,1713172233244,-104.85130296,0.00020899,2]
[322648814,1713172233289,-612.0246358,0.00020899,2]
[322648844,1713172237821,-278.69318887,0.00020899,2]
[322648846,1713172237837,-304.95578629,0.00020899,2]
[322648847,1713172237846,-159.28453069,0.00020899,2]
[322648848,1713172237856,-539.76209275,0.00020899,2]
[322648849,1713172237867,-407031.45771302,0.00020899,2]
[322648850,1713172237877,-1260369.00942215,0.000209,3]
[322648851,1713172237886,-150.0,0.000209,2]
[322648852,1713172237895,-5661.3991,0.000209,2]
[322648853,1713172238204,-155.80842558,0.000209,2]
[322648854,1713172238233,-151.44981618,0.000209,2]
[322648855,1713172238244,-673.22376904,0.000209,2]
[322648856,1713172238255,-269.0,0.00020932,2]
[322648857,1713172238265,-275.01070826,0.0002097,2]
[322648858,1713172238275,-275.01070826,0.0002097,2]
[322648859,1713172238287,-1273545.4198164,0.0002098,2]
[322648860,1713172238298,-2224.18211761,0.0002099,2]
[322648861,1713172238309,-876.2389254,0.00020995,2]
[322648862,1713172238320,-3879.86550281,0.00020995,2]
[322648863,1713172238331,-304.53259239,0.00020997,2]
[322648864,1713172238349,-157.041518,0.00020997,2]
[322648865,1713172238360,-157.041518,0.00020997,2]
[322648866,1713172238371,-163.041518,0.00020997,2]
[322648867,1713172238381,-312.83485941,0.00020998,2]
[322648868,1713172238391,-233.46899336,0.00020998,2]
[322648869,1713172238401,-261.70799601,0.00020998,2]
[322648870,1713172238412,-1774.21776063,0.00020998,2]
[322648871,1713172238423,-294.30065412,0.00020998,2]
[322648873,1713172238436,-542.92117578,0.00020998,2]
[322648875,1713172238447,-174.7745079,0.00020998,2]
[322648877,1713172238458,-620.54602664,0.00020998,2]
[322648879,1713172238470,-261.60041953,0.00020998,2]
[322648881,1713172238482,-157.041518,0.00020998,2]
[322648883,1713172238491,-157.041518,0.00020998,2]
[322648885,1713172238503,-157.041518,0.00020998,2]
[322648887,1713172238513,-157.041518,0.00020998,2]
[322648889,1713172238524,-157.041518,0.00020998,2]
[322648891,1713172238536,-157.041518,0.00020998,2]
[322648893,1713172238549,-157.041518,0.00020998,2]
[322648895,1713172238560,-167.041518,0.00020998,2]
[322648897,1713172238571,-167.041518,0.00020998,2]
[322648899,1713172238587,-167.041518,0.00020998,2]
[322648901,1713172238598,-488.31955414,0.00020999,2]
[322648903,1713172238609,-16088.42771983,0.00020999,2]
[322648905,1713172238620,-150.01,0.00020999,2]
[322648907,1713172238631,-157.041518,0.00020999,2]
[322648909,1713172238641,-157.041518,0.00020999,2]
[322648911,1713172238651,-157.041518,0.00020999,2]
[322648913,1713172238662,-157.041518,0.00020999,2]
[322648915,1713172238671,-157.041518,0.00020999,2]